fUST/lending_fUST_20250911
["ID","MTS","AMOUNT","RATE_DAILY","PERIOD"]
[384838565,1757583057282,-216.68307376,0.0001452,2]
[384838566,1757583057291,-480.0,0.0001452,2]
[384838567,1757583057301,-480.0,0.0001452,2]
[384838568,1757583057311,-1046.85,0.0001452,2]
[384838569,1757583057322,-486.9194041,0.0001452,2]
[384838570,1757583057331,-480.0,0.0001452,2]
[384838571,1757583057340,-348.37685643,0.0001452,2]
[384838572,1757583057349,-151.0,0.0001452,2]
[384838573,1757583057359,-151.0,0.0001452,2]
[384838574,1757583057368,-480.0,0.0001452,2]
[384838575,1757583057377,-480.0,0.0001452,2]
[384838576,1757583057387,-480.0,0.0001452,2]
[384838577,1757583057397,-441.10701932,0.0001452,2]
[384838578,1757583057406,-480.0,0.0001452,2]
[384838579,1757583057416,-151.0,0.0001452,2]
[384838580,1757583057425,-480.0,0.0001452,2]
[384838581,1757583057434,-480.0,0.0001452,2]
[384838582,1757583057443,-480.0,0.0001452,2]
[384838583,1757583057453,-469.34468138,0.0001452,2]
[384838584,1757583057462,-480.0,0.0001452,2]
[384838585,1757583057471,-480.0,0.0001452,2]
[384838586,1757583057480,-480.0,0.0001452,2]
[384838587,1757583057489,-480.0,0.0001452,2]
[384838588,1757583057498,-480.0,0.0001452,2]
[384838589,1757583057507,-480.0,0.0001452,2]
[384838590,1757583057516,-480.0,0.0001452,2]
[384838591,1757583057526,-480.0,0.0001452,2]
[384838592,1757583057534,-480.0,0.0001452,2]
[384838593,1757583057544,-480.0,0.0001452,2]
[384838594,1757583057553,-480.0,0.0001452,2]
[384838595,1757583057562,-812.26,0.0001452,2]
[384838596,1757583057571,-480.0,0.0001452,2]
[384838597,1757583057580,-453.69058955,0.0001452,2]
[384838598,1757583057589,-480.0,0.0001452,2]
[384838599,1757583057599,-480.0,0.0001452,2]
[384838600,1757583057607,-480.0,0.0001452,2]
[384838601,1757583057616,-438.1598497,0.0001452,2]
[384838602,1757583057625,-480.0,0.0001452,2]
[384838603,1757583057635,-455.64765956,0.0001452,2]
[384838604,1757583057645,-480.0,0.0001452,2]
[384838605,1757583057654,-480.0,0.0001452,2]
[384838606,1757583057663,-993.24,0.0001452,2]
[384838607,1757583057671,-480.0,0.0001452,2]
[384838608,1757583057680,-480.0,0.0001452,2]
[384838609,1757583057689,-480.0,0.0001452,2]
[384838610,1757583057698,-480.0,0.0001452,2]
[384838611,1757583057706,-1037.62,0.0001452,2]
[384838612,1757583057715,-520.7025171,0.0001452,2]
[384838613,1757583057725,-2337.83,0.0001452,2]
[384838614,1757583057734,-480.0,0.0001452,2]
[384838615,1757583057743,-480.0,0.0001452,2]
[384838616,1757583057752,-229.3,0.0001452,2]
[384838617,1757583057761,-536.15,0.0001452,2]
[384838618,1757583057770,-480.0,0.0001452,2]
[384838619,1757583057779,-1398.06,0.0001452,2]
[384838620,1757583057789,-1154.73,0.0001452,2]
[384838621,1757583057799,-480.0,0.0001452,2]
[384838622,1757583057808,-480.0,0.0001452,2]
[384838623,1757583057817,-480.0,0.0001452,2]
[384838624,1757583057826,-480.0,0.0001452,2]
[384838625,1757583057836,-480.0,0.0001452,2]
[384838626,1757583057845,-1146.59,0.0001452,2]
[384838627,1757583057854,-591.7,0.0001452,2]
[384838628,1757583057863,-1163.79,0.0001452,2]
[384838629,1757583057873,-3030.31,0.0001452,2]
[384838630,1757583057949,-920.07,0.0001452,2]
[384838631,1757583057958,-2352.76,0.0001452,2]
[384838632,1757583057967,-480.0,0.0001452,2]
[384838633,1757583057976,-889.18,0.0001452,2]
[384838634,1757583057985,-480.0,0.0001452,2]
[384838635,1757583057994,-1492.93,0.0001452,2]
[384838636,1757583058003,-480.0,0.0001452,2]
[384838637,1757583058013,-2106.11,0.0001452,2]
[384838638,1757583058022,-402.00279279,0.00014537,2]
[384838639,1757583058031,-1500.0,0.00014768,2]
[384838640,1757583058040,-1502.30528819,0.00014768,2]
[384838641,1757583058049,-250.68086532,0.00014768,2]
[384838642,1757583058059,-411.06922566,0.00014768,2]
[384838643,1757583058068,-1500.0,0.00014768,2]
[384838644,1757583058077,-708.11692472,0.00014786,2]
[384838645,1757583058087,-500.0,0.00014794,2]
[384838646,1757583058096,-480.0,0.00014794,2]
[384838647,1757583058106,-480.0,0.00014794,2]
[384838648,1757583058115,-1046.85,0.00014794,2]
[384838649,1757583058124,-151.0,0.00014794,2]
[384838650,1757583058133,-151.0,0.00014794,2]
[384838651,1757583058145,-151.0,0.00014794,2]
[384838652,1757583058155,-151.0,0.00014794,2]
[384838653,1757583058164,-151.0,0.00014794,2]
[384838654,1757583058173,-151.0,0.00014794,2]
[384838655,1757583058182,-242.720414,0.00014794,2]
[384838656,1757583058191,-480.0,0.00014794,2]
[384838657,1757583058201,-151.0,0.00014794,2]
[384838658,1757583058215,-151.0,0.00014794,2]
[384838659,1757583058224,-151.0,0.00014794,2]
[384838660,1757583058233,-480.0,0.00014794,2]
[384838661,1757583058243,-245.80634212,0.00014794,2]
[384838662,1757583058252,-480.0,0.00014794,2]
[384838663,1757583058262,-480.0,0.00014794,2]
[384838664,1757583058271,-480.0,0.00014794,2]
[384838665,1757583058282,-532.19230351,0.00014794,2]
[384838666,1757583058292,-480.0,0.00014794,2]
[384838667,1757583058301,-480.0,0.00014794,2]
[384838668,1757583058311,-480.0,0.00014794,2]
[384838669,1757583058320,-480.0,0.00014794,2]
[384838670,1757583058330,-480.0,0.00014794,2]
[384838671,1757583058339,-812.26,0.00014794,2]
[384838672,1757583058348,-480.0,0.00014794,2]
[384838673,1757583058357,-480.0,0.00014794,2]
[384838674,1757583058367,-523.02324956,0.00014794,2]
[384838675,1757583058376,-480.0,0.00014794,2]
[384838676,1757583058386,-480.0,0.00014794,2]
[384838677,1757583058397,-993.24,0.00014794,2]
[384838678,1757583058407,-480.0,0.00014794,2]
[384838679,1757583058416,-480.0,0.00014794,2]
[384838680,1757583058436,-480.0,0.00014794,2]
[384838681,1757583058452,-480.0,0.00014794,2]
[384838682,1757583058471,-1037.62,0.00014794,2]
[384838683,1757583058490,-2337.83,0.00014794,2]
[384838684,1757583058509,-573.55101016,0.00014794,2]
[384838685,1757583058525,-480.0,0.00014794,2]
[384838686,1757583058543,-536.15,0.00014794,2]
[384838687,1757583058557,-1398.06,0.00014794,2]
[384838688,1757583058575,-1154.73,0.00014794,2]
[384838689,1757583058594,-480.0,0.00014794,2]
[384838690,1757583058609,-480.0,0.00014794,2]
[384838691,1757583058625,-480.0,0.00014794,2]
[384838692,1757583058640,-480.0,0.00014794,2]
[384838693,1757583058656,-480.0,0.00014794,2]
[384838694,1757583058669,-1146.59,0.00014794,2]
[384838695,1757583058683,-591.7,0.00014794,2]
[384838696,1757583058697,-1163.79,0.00014794,2]
[384838697,1757583058711,-3030.31,0.00014794,2]
[384838698,1757583058724,-920.07,0.00014794,2]
[384838699,1757583058739,-2352.76,0.00014794,2]
[384838700,1757583058754,-480.0,0.00014794,2]
[384838701,1757583058768,-889.18,0.00014794,2]
[384838702,1757583058783,-1492.93,0.00014794,2]
[384838703,1757583058798,-480.0,0.00014794,2]
[384838704,1757583058813,-2106.11,0.00014794,2]
[384838705,1757583058828,-1000.0,0.00014797,2]
[384838706,1757583058842,-1000.0,0.0001484,2]
[384838707,1757583058857,-1000.0,0.0001484,2]
[384838708,1757583058871,-490.37992502,0.0001484,2]
[384838709,1757583058885,-1000.0,0.0001484,2]
[384838710,1757583058901,-364.04709073,0.0001484,2]
[384838711,1757583058914,-1000.0,0.0001484,2]
[384838712,1757583058924,-1000.0,0.0001484,2]
[384838713,1757583058934,-502.85300624,0.0001484,2]
[384838714,1757583058944,-501.95754405,0.00014855,2]
[384838715,1757583058955,-357.2568059,0.00014865,2]
[384838716,1757583058965,-1000.0,0.00014865,2]
[384838717,1757583058974,-500.0,0.00014865,2]
[384838718,1757583058983,-1000.0,0.00014865,2]
[384838719,1757583058992,-1000.0,0.00014865,2]
[384838720,1757583059002,-500.95718781,0.00014865,2]
[384838721,1757583059011,-1000.0,0.00014865,2]
[384838722,1757583059021,-1680.0,0.00014894,2]
[384838723,1757583059036,-420.0,0.00014894,2]
[384838724,1757583059046,-892.18463858,0.000149,2]
[384838725,1757583059056,-1680.0,0.00014948,2]
[384838726,1757583059066,-168.3888056,0.00014959,2]
[384838727,1757583059199,-151.0,0.00015,2]
[384838728,1757583059263,-151.0,0.00015,2]
[384838729,1757583059274,-160.0,0.00015,2]
[384838730,1757583059283,-1000.0,0.00015,2]
[384838731,1757583059293,-500.0,0.00015068,2]
[384838732,1757583059303,-1046.85,0.00015068,2]
[384838733,1757583059312,-480.0,0.00015068,2]
[384838734,1757583059321,-480.0,0.00015068,2]
[384838735,1757583059331,-509.34000515,0.00015068,2]
[384838736,1757583059340,-480.0,0.00015068,2]
[384838737,1757583059349,-465.17239308,0.00015068,2]
[384838738,1757583059358,-584.77,0.00015068,2]
[384838739,1757583059368,-244.21,0.00015068,2]
[384838740,1757583059377,-480.0,0.00015068,2]
[384838741,1757583059387,-812.26,0.00015068,2]
[384838742,1757583059398,-480.0,0.00015068,2]
[384838743,1757583059407,-480.0,0.00015068,2]
[384838744,1757583059417,-480.0,0.00015068,2]
[384838745,1757583059427,-993.24,0.00015068,2]
[384838746,1757583059436,-480.0,0.00015068,2]
[384838747,1757583059446,-480.0,0.00015068,2]
[384838748,1757583059455,-480.0,0.00015068,2]
[384838749,1757583059464,-480.0,0.00015068,2]
[384838750,1757583059473,-1037.62,0.00015068,2]
[384838751,1757583059483,-2337.83,0.00015068,2]
[384838752,1757583059492,-480.0,0.00015068,2]
[384838753,1757583059502,-536.15,0.00015068,2]
[384838754,1757583059511,-1398.06,0.00015068,2]
[384838755,1757583059520,-1154.73,0.00015068,2]
[384838756,1757583059530,-480.0,0.00015068,2]
[384838757,1757583059540,-292.14,0.00015068,2]
[384838758,1757583059549,-480.0,0.00015068,2]
[384838759,1757583059559,-480.0,0.00015068,2]
[384838760,1757583059568,-480.0,0.00015068,2]
[384838761,1757583059578,-1146.59,0.00015068,2]
[384838762,1757583059587,-591.7,0.00015068,2]
[384838763,1757583059597,-1163.79,0.00015068,2]
[384838764,1757583059606,-3030.31,0.00015068,2]
[384838765,1757583059616,-920.07,0.00015068,2]
[384838766,1757583059625,-2352.76,0.00015068,2]
[384838767,1757583059634,-480.0,0.00015068,2]
[384838768,1757583059645,-889.18,0.00015068,2]
[384838769,1757583059655,-1492.93,0.00015068,2]
[384838770,1757583059664,-480.0,0.00015068,2]
[384838771,1757583059673,-2106.11,0.00015068,2]
[384838772,1757583059683,-177.197458,0.00015068,2]
[384838773,1757583059692,-4568.99558772,0.0001508,2]
[384838774,1757583059701,-151.0,0.000152,2]
[384838775,1757583059711,-504.15667014,0.00015316,2]
[384838776,1757583059720,-500.0,0.00015316,2]
[384838777,1757583059730,-500.0,0.00015317,2]
[384838778,1757583059739,-157.30750495,0.00015317,2]
[384838779,1757583059748,-157.0,0.00015317,2]
[384838780,1757583059757,-500.0,0.00015317,2]
[384838781,1757583059767,-247.77503244,0.00015317,2]
[384838782,1757583059776,-500.0,0.00015317,2]
[384838783,1757583059785,-157.0,0.00015317,2]
[384838784,1757583059795,-157.0,0.00015317,2]
[384838785,1757583059804,-157.0,0.00015317,2]
[384838786,1757583059814,-157.17285397,0.00015317,2]
[384838787,1757583059824,-157.0,0.00015317,2]
[384838788,1757583059833,-225.48527278,0.00015317,2]
[384838789,1757583059843,-157.1731224,0.00015317,2]
[384838790,1757583059854,-157.0,0.00015317,2]
[384838791,1757583059863,-500.0,0.00015317,2]
[384838792,1757583059873,-500.0,0.00015317,2]
[384838793,1757583059882,-500.0,0.00015317,2]
[384838794,1757583059894,-157.24661627,0.00015317,2]
[384838795,1757583059904,-500.0,0.00015317,2]
[384838796,1757583059914,-157.0,0.00015317,2]
[384838797,1757583059923,-157.0,0.00015317,2]
[384838798,1757583059933,-302.47220801,0.00015317,2]
[384838799,1757583059942,-158.77468404,0.00015317,2]
[384838800,1757583059951,-157.0,0.00015317,2]
[384838801,1757583059960,-1046.85,0.00015342,2]
[384838802,1757583059970,-480.0,0.00015342,2]
[384838803,1757583059979,-319.07203454,0.00015342,2]
[384838804,1757583059989,-511.45388624,0.00015342,2]
[384838805,1757583059998,-812.26,0.00015342,2]
[384838806,1757583060007,-480.0,0.00015342,2]
[384838807,1757583060017,-993.24,0.00015342,2]
[384838808,1757583060027,-480.0,0.00015342,2]
[384838809,1757583060036,-480.0,0.00015342,2]
[384838810,1757583060046,-480.0,0.00015342,2]
[384838811,1757583060058,-1037.62,0.00015342,2]
[384838812,1757583060070,-2337.83,0.00015342,2]
[384838813,1757583060080,-480.0,0.00015342,2]
[384838814,1757583060089,-536.15,0.00015342,2]
[384838815,1757583060099,-1398.06,0.00015342,2]
[384838816,1757583060109,-1154.73,0.00015342,2]
[384838817,1757583060119,-480.0,0.00015342,2]
[384838818,1757583060128,-480.0,0.00015342,2]
[384838819,1757583060138,-489.80160789,0.00015342,2]
[384838820,1757583060153,-1146.59,0.00015342,2]
[384838821,1757583060162,-591.7,0.00015342,2]
[384838822,1757583060172,-1163.79,0.00015342,2]
[384838823,1757583060181,-3030.31,0.00015342,2]
[384838824,1757583060191,-920.07,0.00015342,2]
[384838825,1757583060200,-2352.76,0.00015342,2]
[384838826,1757583060216,-889.18,0.00015342,2]
[384838827,1757583060225,-1492.93,0.00015342,2]
[384838828,1757583060235,-480.0,0.00015342,2]
[384838829,1757583060244,-2106.11,0.00015342,2]
[384838830,1757583060254,-1004.63130133,0.00015345,2]
[384838831,1757583060263,-500.0,0.00015388,2]
[384838832,1757583060272,-1500.0,0.00015388,2]
[384838833,1757583060282,-1006.61713057,0.00015388,2]
[384838834,1757583060291,-1500.0,0.00015388,2]
[384838835,1757583060300,-1500.0,0.00015388,2]
[384838836,1757583060309,-151.0,0.000154,2]
[384838837,1757583060319,-1500.0,0.00015413,2]
[384838838,1757583060328,-1500.0,0.00015413,2]
[384838839,1757583060337,-174.59529715,0.00015516,2]
[384838840,1757583060346,-412.04069629,0.00015548,2]
[384838841,1757583060355,-500.0,0.00015591,2]
[384838842,1757583060364,-157.0,0.00015591,2]
[384838843,1757583060374,-596.58799711,0.00015591,2]
[384838844,1757583060383,-500.0,0.00015591,2]
[384838845,1757583060393,-157.0,0.00015591,2]
[384838846,1757583060403,-157.0,0.00015591,2]
[384838847,1757583060413,-157.0,0.00015591,2]
[384838848,1757583060422,-157.0,0.00015591,2]
[384838849,1757583060432,-517.37470124,0.00015591,2]
[384838850,1757583060441,-500.0,0.00015591,2]
[384838851,1757583060450,-500.0,0.00015591,2]
[384838852,1757583060459,-500.0,0.00015591,2]
[384838853,1757583060468,-157.0,0.00015591,2]
[384838854,1757583060478,-157.0,0.00015591,2]
[384838855,1757583060486,-157.0,0.00015591,2]
[384838856,1757583060496,-1046.85,0.00015616,2]
[384838857,1757583060505,-151.0,0.00015616,2]
[384838858,1757583060514,-151.0,0.00015616,2]
[384838859,1757583060523,-151.0,0.00015616,2]
[384838860,1757583060532,-178.113415,0.00015616,2]
[384838861,1757583060541,-151.0,0.00015616,2]
[384838862,1757583060551,-151.0,0.00015616,2]
[384838863,1757583060559,-480.0,0.00015616,2]
[384838864,1757583060568,-812.26,0.00015616,2]
[384838865,1757583060577,-480.0,0.00015616,2]
[384838866,1757583060586,-993.24,0.00015616,2]
[384838867,1757583060596,-480.0,0.00015616,2]
[384838868,1757583060605,-480.0,0.00015616,2]
[384838869,1757583060614,-480.0,0.00015616,2]
[384838870,1757583060623,-1037.62,0.00015616,2]
[384838871,1757583060634,-2337.83,0.00015616,2]
[384838872,1757583060643,-480.0,0.00015616,2]
[384838873,1757583060652,-536.15,0.00015616,2]
[384838874,1757583060661,-1398.06,0.00015616,2]
[384838875,1757583060670,-1154.73,0.00015616,2]
[384838876,1757583060680,-214.68391163,0.00015616,2]
[384838877,1757583060690,-1146.59,0.00015616,2]
[384838878,1757583060699,-591.7,0.00015616,2]
[384838879,1757583060709,-1163.79,0.00015616,2]
[384838880,1757583060718,-3030.31,0.00015616,2]
[384838881,1757583060727,-920.07,0.00015616,2]
[384838882,1757583060736,-2352.76,0.00015616,2]
[384838883,1757583060745,-889.18,0.00015616,2]
[384838884,1757583060754,-1492.93,0.00015616,2]
[384838885,1757583060763,-480.0,0.00015616,2]
[384838886,1757583060772,-2106.11,0.00015616,2]
[384838887,1757583060782,-160.0,0.00015694,2]
[384838888,1757583060791,-634.0,0.00015729,2]
[384838889,1757583060800,-2155.0,0.00015729,2]
[384838890,1757583060809,-409.0,0.00015729,2]
[384838891,1757583060819,-4568.99558772,0.00015834,2]
[384838892,1757583060827,-494.0,0.00015865,2]
[384838893,1757583060836,-500.0,0.00015865,2]
[384838894,1757583060846,-157.0,0.00015865,2]
[384838895,1757583060855,-267.87,0.00015865,2]
[384838896,1757583060864,-157.0,0.00015865,2]
[384838897,1757583060873,-157.0,0.00015865,2]
[384838898,1757583060882,-500.0,0.00015865,2]
[384838899,1757583060891,-273.0,0.00015865,2]
[384838900,1757583060900,-500.0,0.00015865,2]
[384838901,1757583060910,-157.0,0.00015865,2]
[384838902,1757583060919,-157.0,0.00015865,2]
[384838903,1757583060929,-157.0,0.00015865,2]
[384838904,1757583060940,-757.37763124,0.00015885,2]
[384838905,1757583060949,-1046.85,0.0001589,2]
[384838906,1757583060958,-480.0,0.0001589,2]
[384838907,1757583060967,-812.26,0.0001589,2]
[384838908,1757583060976,-480.0,0.0001589,2]
[384838909,1757583060986,-993.24,0.0001589,2]
[384838910,1757583060995,-480.0,0.0001589,2]
[384838911,1757583061005,-480.0,0.0001589,2]
[384838912,1757583061016,-480.0,0.0001589,2]
[384838913,1757583061025,-1037.62,0.0001589,2]
[384838914,1757583061035,-2337.83,0.0001589,2]
[384838915,1757583061044,-480.0,0.0001589,2]
[384838916,1757583061053,-536.15,0.0001589,2]
[384838917,1757583061062,-1398.06,0.0001589,2]
[384838918,1757583061072,-1154.73,0.0001589,2]
[384838919,1757583061082,-1146.59,0.0001589,2]
[384838920,1757583061091,-591.7,0.0001589,2]
[384838921,1757583061101,-1163.79,0.0001589,2]
[384838922,1757583061111,-3030.31,0.0001589,2]
[384838923,1757583061120,-920.07,0.0001589,2]
[384838924,1757583061129,-2352.76,0.0001589,2]
[384838925,1757583061139,-889.18,0.0001589,2]
[384838926,1757583061148,-1492.93,0.0001589,2]
[384838927,1757583061157,-480.0,0.0001589,2]
[384838928,1757583061166,-2106.11,0.0001589,2]
[384838929,1757583061175,-1000.0,0.00015936,2]
[384838930,1757583061185,-500.0,0.00015936,2]
[384838931,1757583061194,-500.0,0.00015961,2]
[384838932,1757583061204,-500.0,0.00015961,2]
[384838933,1757583061216,-282.80057504,0.00016139,2]
[384838934,1757583061225,-157.0,0.00016139,2]
[384838935,1757583061234,-180.0,0.00016139,2]
[384838936,1757583061243,-157.0,0.00016139,2]
[384838937,1757583061252,-500.0,0.00016139,2]
[384838938,1757583061261,-157.0,0.00016139,2]
[384838939,1757583061271,-157.0,0.00016139,2]
[384838940,1757583061281,-157.0,0.00016139,2]
[384838941,1757583061290,-1046.85,0.00016164,2]
[384838942,1757583061300,-480.0,0.00016164,2]
[384838943,1757583061309,-812.26,0.00016164,2]
[384838944,1757583061319,-480.0,0.00016164,2]
[384838945,1757583061328,-993.24,0.00016164,2]
[384838946,1757583061338,-480.0,0.00016164,2]
[384838947,1757583061347,-480.0,0.00016164,2]
[384838948,1757583061356,-480.0,0.00016164,2]
[384838949,1757583061366,-1037.62,0.00016164,2]
[384838950,1757583061375,-2337.83,0.00016164,2]
[384838951,1757583061384,-480.0,0.00016164,2]
[384838952,1757583061394,-536.15,0.00016164,2]
[384838953,1757583061404,-1398.06,0.00016164,2]
[384838954,1757583061414,-1154.73,0.00016164,2]
[384838955,1757583061424,-1146.59,0.00016164,2]
[384838956,1757583061434,-591.7,0.00016164,2]
[384838957,1757583061443,-1163.79,0.00016164,2]
[384838958,1757583061453,-3030.31,0.00016164,2]
[384838959,1757583061462,-920.07,0.00016164,2]
[384838960,1757583061471,-2352.76,0.00016164,2]
[384838961,1757583061481,-889.18,0.00016164,2]
[384838962,1757583061490,-1492.93,0.00016164,2]
[384838963,1757583061500,-480.0,0.00016164,2]
[384838964,1757583061509,-2106.11,0.00016164,2]
[384838965,1757583061519,-260.0,0.00016242,2]
[384838966,1757583061528,-1735.0,0.00016324,2]
[384838967,1757583061537,-587.0,0.00016324,2]
[384838968,1757583061546,-180.02171922,0.00016328,2]
[384838969,1757583061555,-3000.0,0.000164,2]
[384838970,1757583061565,-157.0,0.00016413,2]
[384838971,1757583061574,-500.0,0.00016413,2]
[384838972,1757583061584,-268.65618874,0.00016413,2]
[384838973,1757583061594,-157.0,0.00016413,2]
[384838974,1757583061603,-157.0,0.00016413,2]
[384838975,1757583061612,-1046.85,0.00016438,2]
[384838976,1757583061621,-480.0,0.00016438,2]
[384838977,1757583061631,-812.26,0.00016438,2]
[384838978,1757583061639,-480.0,0.00016438,2]
[384838979,1757583061649,-993.24,0.00016438,2]
[384838980,1757583061659,-480.0,0.00016438,2]
[384838981,1757583061668,-480.0,0.00016438,2]
[384838982,1757583061678,-480.0,0.00016438,2]
[384838983,1757583061687,-1037.62,0.00016438,2]
[384838984,1757583061697,-2337.83,0.00016438,2]
[384838985,1757583061707,-359.92861701,0.00016438,2]
[384838986,1757583061716,-536.15,0.00016438,2]
[384838987,1757583061725,-1398.06,0.00016438,2]
[384838988,1757583061735,-1154.73,0.00016438,2]
[384838989,1757583061744,-1146.59,0.00016438,2]
[384838990,1757583061754,-591.7,0.00016438,2]
[384838991,1757583061763,-1163.79,0.00016438,2]
[384838992,1757583061773,-3030.31,0.00016438,2]
[384838993,1757583061782,-920.07,0.00016438,2]
[384838994,1757583061791,-2352.76,0.00016438,2]
[384838995,1757583061801,-889.18,0.00016438,2]
[384838996,1757583061810,-1492.93,0.00016438,2]
[384838997,1757583061914,-480.0,0.00016438,2]
[384838998,1757583061924,-2106.11,0.00016438,2]
[384838999,1757583061933,-506.0,0.00016443,2]
[384839000,1757583061943,-166.50272184,0.00016561,2]
[384839001,1757583061952,-4568.99558772,0.00016587,2]
[384839002,1757583061961,-1444.60253308,0.00016646,2]
[384839003,1757583061970,-10571.5136236,0.00016679,2]
[384839004,1757583061980,-186.0,0.00016687,2]
[384839005,1757583061990,-261.0,0.00016687,2]
[384839006,1757583061999,-158.69359646,0.00016687,2]
[384839007,1757583062009,-1046.85,0.00016712,2]
[384839008,1757583062018,-480.0,0.00016712,2]
[384839009,1757583062027,-812.26,0.00016712,2]
[384839010,1757583062036,-480.0,0.00016712,2]
[384839011,1757583062045,-993.24,0.00016712,2]
[384839012,1757583062056,-480.0,0.00016712,2]
[384839013,1757583062066,-480.0,0.00016712,2]
[384839014,1757583062075,-402.09597188,0.00016712,2]
[384839015,1757583062084,-1037.62,0.00016712,2]
[384839016,1757583062094,-2337.83,0.00016712,2]
[384839017,1757583062103,-536.15,0.00016712,2]
[384839018,1757583062112,-1398.06,0.00016712,2]
[384839019,1757583062122,-1154.73,0.00016712,2]
[384839020,1757583062131,-1146.59,0.00016712,2]
[384839021,1757583062140,-591.7,0.00016712,2]
[384839022,1757583062150,-1163.79,0.00016712,2]
[384839023,1757583062159,-3030.31,0.00016712,2]
[384839024,1757583062169,-920.07,0.00016712,2]
[384839025,1757583062178,-2352.76,0.00016712,2]
[384839026,1757583062187,-889.18,0.00016712,2]
[384839027,1757583062196,-1492.93,0.00016712,2]
[384839028,1757583062208,-480.0,0.00016712,2]
[384839029,1757583062219,-2106.11,0.00016712,2]
[384839030,1757583062229,-23727.3411688,0.00016745,2]
[384839031,1757583062238,-360.0,0.0001679,2]
[384839032,1757583062247,-1000.0,0.00016886,2]
[384839033,1757583062258,-28368.81243738,0.00016886,2]
[384839034,1757583062268,-275.0,0.0001697,2]
[384839035,1757583062278,-1046.85,0.00016986,2]
[384839036,1757583062288,-480.0,0.00016986,2]
[384839037,1757583062298,-812.26,0.00016986,2]
[384839038,1757583062308,-480.0,0.00016986,2]
[384839039,1757583062317,-993.24,0.00016986,2]
[384839040,1757583062327,-480.0,0.00016986,2]
[384839041,1757583062336,-480.0,0.00016986,2]
[384839042,1757583062346,-1037.62,0.00016986,2]
[384839043,1757583062355,-2337.83,0.00016986,2]
[384839044,1757583062365,-536.15,0.00016986,2]
[384839045,1757583062374,-1398.06,0.00016986,2]
[384839046,1757583062384,-1154.73,0.00016986,2]
[384839047,1757583062393,-1146.59,0.00016986,2]
[384839048,1757583062403,-591.7,0.00016986,2]
[384839049,1757583062413,-1163.79,0.00016986,2]
[384839050,1757583062422,-3030.31,0.00016986,2]
[384839051,1757583062432,-920.07,0.00016986,2]
[384839052,1757583062442,-2352.76,0.00016986,2]
[384839053,1757583062452,-889.18,0.00016986,2]
[384839054,1757583062461,-1492.93,0.00016986,2]
[384839055,1757583062470,-480.0,0.00016986,2]
[384839056,1757583062479,-2106.11,0.00016986,2]
[384839057,1757583062489,-1001.0,0.00017,7]
[384839058,1757583062498,-168.0,0.00017159,2]
[384839059,1757583062507,-168.0,0.00017198,2]
[384839060,1757583062517,-1046.85,0.0001726,2]
[384839061,1757583062526,-480.0,0.0001726,2]
[384839062,1757583062536,-812.26,0.0001726,2]
[384839063,1757583062545,-480.0,0.0001726,2]
[384839064,1757583062554,-993.24,0.0001726,2]